[Event "January 2 Late 2024"]
[Site "https://www.chess.com"]
[Date "2024.01.02"]
[Round "7"]
[White "Svane, Rasmus"]
[Black "Agibileg, Uurtsaikh"]
[Result "1-0"]
[Board "34"]
[TimeControl "180+1"]
[WhiteFideId "4657101"]
[BlackFideId "4901606"]
[WhiteElo "2984"]
[BlackElo "2658"]
[WhiteTeam "GER"]
[BlackTeam "MGL"]
[WhiteClock "0:00:16"]
[BlackClock "0:00:07"]

1. Nf3 {[%clk 0:03:00]}  Nf6 {[%clk 0:02:59]} 2. g3 {[%clk 0:03:01]}  g6 {[%clk 0:02:58]} 3. Bg2 {[%clk 0:02:59]}  Bg7 {[%clk 0:02:59]} 4. O-O {[%clk 0:03:00]}  O-O {[%clk 0:02:59]} 5. d4 {[%clk 0:02:59]}  d6 {[%clk 0:03:00]} 6. Re1 {[%clk 0:02:59]}  Nc6 {[%clk 0:02:54]} 7. d5 {[%clk 0:02:58]}  Nb4 {[%clk 0:02:53]} 8. Nc3 {[%clk 0:02:54]}  c6 {[%clk 0:02:51]} 9. e4 {[%clk 0:02:53]}  Bd7 {[%clk 0:02:44]} 10. Be3 {[%clk 0:02:49]}  c5 {[%clk 0:02:39]} 11. e5 {[%clk 0:02:40]}  dxe5 {[%clk 0:02:39]} 12. Bxc5 {[%clk 0:02:27]}  Na6 {[%clk 0:02:36]} 13. Ba3 {[%clk 0:02:26]}  Bg4 {[%clk 0:02:33]} 14. Rxe5 {[%clk 0:02:22]}  Qb6 {[%clk 0:02:25]} 15. Rxe7 {[%clk 0:02:02]}  Rfe8 {[%clk 0:02:13]} 16. Rxe8+ {[%clk 0:01:51]}  Rxe8 {[%clk 0:02:14]} 17. Qd2 {[%clk 0:01:51]}  Nc5 {[%clk 0:02:10]} 18. Re1 {[%clk 0:01:21]}  Nfe4 {[%clk 0:02:08]} 19. Nxe4 {[%clk 0:01:21]}  Nxe4 {[%clk 0:02:08]} 20. Qe3 {[%clk 0:01:22]}  Qa5 {[%clk 0:01:52]} 21. Nd2 {[%clk 0:00:59]}  f5 {[%clk 0:00:58]} 22. Nxe4 {[%clk 0:00:59]}  fxe4 {[%clk 0:00:56]} 23. d6 {[%clk 0:00:39]}  Bd4 {[%clk 0:00:56]} 24. Qb3+ {[%clk 0:00:39]}  Re6 {[%clk 0:00:21]} 25. c3 {[%clk 0:00:24]}  Bb6 {[%clk 0:00:08]} 26. Rxe4 {[%clk 0:00:18]}  Qf5 {[%clk 0:00:07]} 27. Qxe6+ {[%clk 0:00:15]}  Qxe6 {[%clk 0:00:08]} 28. Rxe6 {[%clk 0:00:15]}  Bxe6 {[%clk 0:00:07]} 29. Bxb7 {[%clk 0:00:16]} 1-0

[Event "January 2 Late 2024"]
[Site "https://www.chess.com"]
[Date "2024.01.02"]
[Round "7"]
[White "Mirzoev, Azer"]
[Black "Grigoriants, Sergey"]
[Result "0-1"]
[Board "35"]
[TimeControl "180+1"]
[WhiteFideId "13400304"]
[BlackFideId "4130804"]
[WhiteElo "2656"]
[BlackElo "2936"]
[WhiteTeam "AZE"]
[BlackTeam "HUN"]
[WhiteClock "0:00:00"]
[BlackClock "0:00:07"]

1. c4 {[%clk 0:03:00]}  g6 {[%clk 0:02:52]} 2. Nc3 {[%clk 0:02:59]}  c5 {[%clk 0:02:51]} 3. g3 {[%clk 0:02:59]}  Bg7 {[%clk 0:02:50]} 4. Bg2 {[%clk 0:03:00]}  Nc6 {[%clk 0:02:48]} 5. h4 {[%clk 0:03:00]}  h6 {[%clk 0:02:44]} 6. Nh3 {[%clk 0:02:59]}  d6 {[%clk 0:02:43]} 7. d3 {[%clk 0:03:00]}  e6 {[%clk 0:02:39]} 8. Nf4 {[%clk 0:02:58]}  Nge7 {[%clk 0:02:38]} 9. Bd2 {[%clk 0:02:58]}  Rb8 {[%clk 0:02:38]} 10. a3 {[%clk 0:02:56]}  a6 {[%clk 0:02:37]} 11. Rb1 {[%clk 0:02:52]}  b5 {[%clk 0:02:33]} 12. cxb5 {[%clk 0:02:51]}  axb5 {[%clk 0:02:33]} 13. b4 {[%clk 0:02:51]}  c4 {[%clk 0:02:17]} 14. dxc4 {[%clk 0:02:50]}  bxc4 {[%clk 0:02:17]} 15. b5 {[%clk 0:02:45]}  Nd4 {[%clk 0:02:13]} 16. O-O {[%clk 0:02:15]}  O-O {[%clk 0:02:08]} 17. a4 {[%clk 0:02:10]}  d5 {[%clk 0:01:57]} 18. e4 {[%clk 0:02:05]}  Bb7 {[%clk 0:01:48]} 19. exd5 {[%clk 0:02:00]}  e5 {[%clk 0:01:48]} 20. Nfe2 {[%clk 0:01:54]}  Nxd5 {[%clk 0:01:48]} 21. Ne4 {[%clk 0:01:00]}  Rc8 {[%clk 0:01:32]} 22. a5 {[%clk 0:00:54]}  f5 {[%clk 0:01:27]} 23. a6 {[%clk 0:00:52]}  Ba8 {[%clk 0:01:25]} 24. N4c3 {[%clk 0:00:42]}  Nb6 {[%clk 0:01:14]} 25. Bxa8 {[%clk 0:00:36]}  Rxa8 {[%clk 0:01:15]} 26. Be3 {[%clk 0:00:31]}  Qd7 {[%clk 0:01:05]} 27. f3 {[%clk 0:00:27]}  Rad8 {[%clk 0:01:03]} 28. Kg2 {[%clk 0:00:26]}  Qe6 {[%clk 0:00:28]} 29. Qc1 {[%clk 0:00:24]}  Nb3 {[%clk 0:00:22]} 30. Qc2 {[%clk 0:00:19]}  Rd3 {[%clk 0:00:19]} 31. Bxb6 {[%clk 0:00:08]}  Rd2 {[%clk 0:00:19]} 32. Qxd2 {[%clk 0:00:06]}  Nxd2 {[%clk 0:00:20]} 33. Bf2 {[%clk 0:00:05]}  e4 {[%clk 0:00:17]} 34. fxe4 {[%clk 0:00:04]}  fxe4 {[%clk 0:00:16]} 35. Be3 {[%clk 0:00:04]}  Nxf1 {[%clk 0:00:11]} 36. Rxf1 {[%clk 0:00:04]}  Rxf1 {[%clk 0:00:08]} 37. Kxf1 {[%clk 0:00:04]}  Bxc3 {[%clk 0:00:09]} 38. Nxc3 {[%clk 0:00:04]}  Qf6+ {[%clk 0:00:09]} 39. Kg2 {[%clk 0:00:02]}  Qxc3 {[%clk 0:00:10]} 40. a7 {[%clk 0:00:02]}  Qa3 {[%clk 0:00:07]} 41. b6 {[%clk 0:00:02]}  Qa6 {[%clk 0:00:07]} 42. Kf2 {[%clk 0:00:02]}  Kf7 {[%clk 0:00:06]} 43. Ke2 {[%clk 0:00:02]}  Ke6 {[%clk 0:00:06]} 44. Kd2 {[%clk 0:00:02]}  Kd5 {[%clk 0:00:07]} 45. Kc3 {[%clk 0:00:02]}  Kc6 {[%clk 0:00:07]} 46. Kd4 {[%clk 0:00:01]}  Kb7 {[%clk 0:00:07]} 47. Kxe4 {[%clk 0:00:01]}  Qa3 {[%clk 0:00:07]} 48. Bd4 {[%clk 0:00:01]}  Qd3+ {[%clk 0:00:07]} 49. Kd5 {[%clk 0:00:00]}  c3 {[%clk 0:00:07]} 0-1

[Event "January 2 Late 2024"]
[Site "https://www.chess.com"]
[Date "2024.01.02"]
[Round "7"]
[White "Veljanoski, Andrej"]
[Black "Harsha Bharathakoti"]
[Result "0-1"]
[Board "38"]
[TimeControl "180+1"]
[WhiteFideId "15003604"]
[BlackFideId "5078776"]
[WhiteElo "2627"]
[BlackElo "2908"]
[WhiteTeam "MKD"]
[BlackTeam "IND"]
[WhiteClock "0:02:15"]
[BlackClock "0:01:58"]

1. Nf3 {[%clk 0:02:59]}  Nf6 {[%clk 0:02:59]} 2. c4 {[%clk 0:02:58]}  g6 {[%clk 0:02:59]} 3. b3 {[%clk 0:02:57]}  Bg7 {[%clk 0:03:00]} 4. Bb2 {[%clk 0:02:58]}  O-O {[%clk 0:03:00]} 5. g3 {[%clk 0:02:59]}  c5 {[%clk 0:03:01]} 6. Bg2 {[%clk 0:02:59]}  d6 {[%clk 0:03:02]} 7. O-O {[%clk 0:02:59]}  e5 {[%clk 0:03:02]} 8. d3 {[%clk 0:03:00]}  Nc6 {[%clk 0:03:03]} 9. Nc3 {[%clk 0:03:00]}  h6 {[%clk 0:03:04]} 10. Nd5 {[%clk 0:02:57]}  Nxd5 {[%clk 0:03:04]} 11. cxd5 {[%clk 0:02:58]}  Ne7 {[%clk 0:03:04]} 12. Nd2 {[%clk 0:02:58]}  h5 {[%clk 0:02:41]} 13. h4 {[%clk 0:02:50]}  Bg4 {[%clk 0:02:40]} 14. a4 {[%clk 0:02:47]}  Qd7 {[%clk 0:02:36]} 15. Kh2 {[%clk 0:02:43]}  Nf5 {[%clk 0:02:32]} 16. Nc4 {[%clk 0:02:36]}  g5 {[%clk 0:02:02]} 17. e4 {[%clk 0:02:15]}  Bxd1 {[%clk 0:01:58]} 0-1

[Event "January 2 Late 2024"]
[Site "https://www.chess.com"]
[Date "2024.01.02"]
[Round "7"]
[White "Brown_Mamba24"]
[Black "Brodsky, David"]
[Result "0-1"]
[Board "39"]
[TimeControl "180+1"]
[BlackFideId "2073250"]
[WhiteElo "2625"]
[BlackElo "2881"]
[BlackTeam "USA"]
[WhiteClock "0:00:01"]
[BlackClock "0:00:06"]

1. d4 {[%clk 0:03:00]}  Nf6 {[%clk 0:02:59]} 2. c4 {[%clk 0:03:00]}  e6 {[%clk 0:02:59]} 3. g3 {[%clk 0:03:01]}  c5 {[%clk 0:02:59]} 4. dxc5 {[%clk 0:03:00]}  Bxc5 {[%clk 0:02:53]} 5. Bg2 {[%clk 0:03:01]}  O-O {[%clk 0:02:40]} 6. Nc3 {[%clk 0:03:00]}  d5 {[%clk 0:02:18]} 7. cxd5 {[%clk 0:02:56]}  exd5 {[%clk 0:02:18]} 8. e3 {[%clk 0:02:11]}  Nc6 {[%clk 0:02:05]} 9. Nge2 {[%clk 0:02:10]}  Bg4 {[%clk 0:01:58]} 10. O-O {[%clk 0:01:44]}  d4 {[%clk 0:01:51]} 11. Bxc6 {[%clk 0:01:11]}  dxc3 {[%clk 0:01:46]} 12. Bb5 {[%clk 0:00:20]}  Qb6 {[%clk 0:01:02]} 13. Qb3 {[%clk 0:00:20]}  Be6 {[%clk 0:00:52]} 14. Bc4 {[%clk 0:00:20]}  Bxc4 {[%clk 0:00:51]} 15. Qxc4 {[%clk 0:00:20]}  cxb2 {[%clk 0:00:51]} 16. Rb1 {[%clk 0:00:15]}  bxc1=Q {[%clk 0:00:48]} 17. Rfxc1 {[%clk 0:00:16]}  Qa5 {[%clk 0:00:36]} 18. Qxc5 {[%clk 0:00:16]}  Qxa2 {[%clk 0:00:37]} 19. Nc3 {[%clk 0:00:07]}  Qa6 {[%clk 0:00:35]} 20. Nb5 {[%clk 0:00:07]}  Ne4 {[%clk 0:00:24]} 21. Qe7 {[%clk 0:00:06]}  Rae8 {[%clk 0:00:15]} 22. Qh4 {[%clk 0:00:03]}  Qa2 {[%clk 0:00:11]} 23. Rf1 {[%clk 0:00:02]}  Nd2 {[%clk 0:00:11]} 24. Nc3 {[%clk 0:00:02]}  Qxb1 {[%clk 0:00:07]} 25. Nxb1 {[%clk 0:00:01]}  Nf3+ {[%clk 0:00:08]} 26. Kg2 {[%clk 0:00:01]}  Nxh4+ {[%clk 0:00:08]} 27. gxh4 {[%clk 0:00:02]}  Rc8 {[%clk 0:00:08]} 28. f4 {[%clk 0:00:03]}  Rfd8 {[%clk 0:00:07]} 29. Kg3 {[%clk 0:00:04]}  h5 {[%clk 0:00:07]} 30. f5 {[%clk 0:00:04]}  Rc4 {[%clk 0:00:06]} 31. h3 {[%clk 0:00:03]}  b5 {[%clk 0:00:06]} 32. Re1 {[%clk 0:00:03]}  b4 {[%clk 0:00:06]} 33. e4 {[%clk 0:00:04]}  a5 {[%clk 0:00:06]} 34. Kf4 {[%clk 0:00:05]}  a4 {[%clk 0:00:06]} 35. Re2 {[%clk 0:00:05]}  a3 {[%clk 0:00:06]} 36. Ra2 {[%clk 0:00:05]}  Rc1 {[%clk 0:00:02]} 37. Nd2 {[%clk 0:00:05]}  Rc3 {[%clk 0:00:03]} 38. Nb1 {[%clk 0:00:05]}  Rxh3 {[%clk 0:00:03]} 39. Kg5 {[%clk 0:00:05]}  Rg3+ {[%clk 0:00:03]} 40. Kxh5 {[%clk 0:00:05]}  Rd1 {[%clk 0:00:03]} 41. Nxa3 {[%clk 0:00:01]}  Rxa3 {[%clk 0:00:03]} 42. Rc2 {[%clk 0:00:02]}  Rc3 {[%clk 0:00:03]} 43. Ra2 {[%clk 0:00:02]}  Rc5 {[%clk 0:00:03]} 44. Ra8+ {[%clk 0:00:01]}  Kh7 {[%clk 0:00:03]} 45. Kg5 {[%clk 0:00:02]}  f6+ {[%clk 0:00:03]} 46. Kf4 {[%clk 0:00:02]}  Rf1+ {[%clk 0:00:03]} 47. Ke3 {[%clk 0:00:02]}  Re5 {[%clk 0:00:04]} 48. Rb8 {[%clk 0:00:02]}  Re1+ {[%clk 0:00:04]} 49. Kd2 {[%clk 0:00:01]}  R1xe4 {[%clk 0:00:05]} 50. Kd3 {[%clk 0:00:02]}  Rxh4 {[%clk 0:00:05]} 51. Kc2 {[%clk 0:00:03]}  Rxf5 {[%clk 0:00:05]} 52. Kb3 {[%clk 0:00:03]}  Rf3+ {[%clk 0:00:05]} 53. Kb2 {[%clk 0:00:04]}  Rh2+ {[%clk 0:00:05]} 54. Kb1 {[%clk 0:00:01]}  Rf1# {[%clk 0:00:06]} 0-1

[Event "January 2 Late 2024"]
[Site "https://www.chess.com"]
[Date "2024.01.02"]
[Round "7"]
[White "Remizov, Yaroslav"]
[Black "Coca Cubillos, Jesus Alberto"]
[Result "1-0"]
[Board "41"]
[TimeControl "180+1"]
[WhiteFideId "34134015"]
[BlackFideId "4462912"]
[WhiteElo "2836"]
[BlackElo "2620"]
[WhiteTeam "RUS"]
[BlackTeam "COL"]
[WhiteClock "0:01:01"]
[BlackClock "0:02:18"]

1. e4 {[%clk 0:03:00]}  g6 {[%clk 0:03:00]} 2. d4 {[%clk 0:03:00]}  Bg7 {[%clk 0:03:01]} 3. Nc3 {[%clk 0:03:01]}  Nh6 {[%clk 0:03:01]} 4. h4 {[%clk 0:02:54]}  f6 {[%clk 0:03:01]} 5. Nge2 {[%clk 0:02:41]}  d6 {[%clk 0:03:01]} 6. Ng3 {[%clk 0:02:39]}  Nc6 {[%clk 0:02:59]} 7. Bc4 {[%clk 0:02:23]}  Nf7 {[%clk 0:02:58]} 8. Be3 {[%clk 0:02:20]}  e5 {[%clk 0:02:54]} 9. h5 {[%clk 0:02:09]}  g5 {[%clk 0:02:53]} 10. h6 {[%clk 0:02:07]}  Bf8 {[%clk 0:02:54]} 11. Qh5 {[%clk 0:02:01]}  Qd7 {[%clk 0:02:46]} 12. Nd5 {[%clk 0:02:01]}  Be7 {[%clk 0:02:41]} 13. Nf5 {[%clk 0:01:53]}  Bd8 {[%clk 0:02:38]} 14. Ng7+ {[%clk 0:01:37]}  Kf8 {[%clk 0:02:38]} 15. O-O-O {[%clk 0:01:37]}  exd4 {[%clk 0:02:38]} 16. Bxd4 {[%clk 0:01:36]}  Nxd4 {[%clk 0:02:38]} 17. Rxd4 {[%clk 0:01:37]}  c6 {[%clk 0:02:38]} 18. Ne3 {[%clk 0:01:25]}  Bb6 {[%clk 0:02:36]} 19. Ne6+ {[%clk 0:01:19]}  Ke8 {[%clk 0:02:34]} 20. Rxd6 {[%clk 0:01:06]}  Bxe3+ {[%clk 0:02:30]} 21. fxe3 {[%clk 0:01:06]}  Qe7 {[%clk 0:02:20]} 22. Rd8+ {[%clk 0:01:01]}  Qxd8 {[%clk 0:02:20]} 23. Nxd8 {[%clk 0:01:01]}  Kxd8 {[%clk 0:02:19]} 24. Qxf7 {[%clk 0:01:01]}  Bd7 {[%clk 0:02:18]} 25. Rd1 {[%clk 0:01:01]} 1-0

[Event "January 2 Late 2024"]
[Site "https://www.chess.com"]
[Date "2024.01.02"]
[Round "7"]
[White "Luo, Terry"]
[Black "Bachmann, Axel"]
[Result "1/2-1/2"]
[Board "42"]
[TimeControl "180+1"]
[WhiteFideId "30931045"]
[BlackFideId "3700488"]
[WhiteElo "2618"]
[BlackElo "2822"]
[WhiteTeam "USA"]
[BlackTeam "PAR"]
[WhiteClock "0:00:05"]
[BlackClock "0:00:25"]

1. d4 {[%clk 0:03:00]}  Nf6 {[%clk 0:02:58]} 2. Nc3 {[%clk 0:02:59]}  e6 {[%clk 0:02:59]} 3. Bf4 {[%clk 0:02:59]}  d5 {[%clk 0:02:58]} 4. e3 {[%clk 0:02:59]}  a6 {[%clk 0:02:57]} 5. g4 {[%clk 0:02:59]}  Bb4 {[%clk 0:02:52]} 6. Ne2 {[%clk 0:02:56]}  Nxg4 {[%clk 0:02:48]} 7. Rg1 {[%clk 0:02:56]}  Qh4 {[%clk 0:02:43]} 8. Bg3 {[%clk 0:02:56]}  Qe7 {[%clk 0:02:31]} 9. a3 {[%clk 0:02:43]}  Bd6 {[%clk 0:02:29]} 10. Bxd6 {[%clk 0:02:42]}  cxd6 {[%clk 0:02:30]} 11. Rxg4 {[%clk 0:02:42]}  f5 {[%clk 0:02:28]} 12. Rg1 {[%clk 0:02:42]}  O-O {[%clk 0:02:19]} 13. Qd2 {[%clk 0:02:40]}  Nd7 {[%clk 0:02:18]} 14. O-O-O {[%clk 0:02:40]}  b5 {[%clk 0:02:18]} 15. Nf4 {[%clk 0:02:39]}  Nb6 {[%clk 0:02:13]} 16. Be2 {[%clk 0:02:28]}  Bd7 {[%clk 0:02:10]} 17. Rg3 {[%clk 0:02:25]}  Nc4 {[%clk 0:02:00]} 18. Bxc4 {[%clk 0:02:24]}  bxc4 {[%clk 0:02:01]} 19. Rdg1 {[%clk 0:02:24]}  Rf7 {[%clk 0:02:02]} 20. Nh5 {[%clk 0:02:15]}  g6 {[%clk 0:02:01]} 21. Nf4 {[%clk 0:02:16]}  Rg7 {[%clk 0:02:00]} 22. h4 {[%clk 0:02:09]}  Qxh4 {[%clk 0:01:57]} 23. Rg5 {[%clk 0:02:06]}  Rf8 {[%clk 0:01:45]} 24. Qe2 {[%clk 0:01:56]}  e5 {[%clk 0:01:41]} 25. dxe5 {[%clk 0:01:53]}  dxe5 {[%clk 0:01:42]} 26. Nfxd5 {[%clk 0:01:53]}  Be6 {[%clk 0:01:31]} 27. Kb1 {[%clk 0:01:41]}  Rb7 {[%clk 0:01:03]} 28. f4 {[%clk 0:01:38]}  e4 {[%clk 0:00:58]} 29. Qg2 {[%clk 0:00:54]}  Qh6 {[%clk 0:00:56]} 30. Rxg6+ {[%clk 0:00:41]}  hxg6 {[%clk 0:00:52]} 31. Qxg6+ {[%clk 0:00:42]}  Qxg6 {[%clk 0:00:49]} 32. Rxg6+ {[%clk 0:00:42]}  Kh7 {[%clk 0:00:42]} 33. Rxe6 {[%clk 0:00:42]}  Rfb8 {[%clk 0:00:43]} 34. Na4 {[%clk 0:00:31]}  Rd8 {[%clk 0:00:40]} 35. Re5 {[%clk 0:00:26]}  Kh6 {[%clk 0:00:34]} 36. Nc5 {[%clk 0:00:22]}  Rb5 {[%clk 0:00:29]} 37. Re6+ {[%clk 0:00:12]}  Kg7 {[%clk 0:00:26]} 38. Re7+ {[%clk 0:00:05]}  Kh6 {[%clk 0:00:26]} 39. Re6+ {[%clk 0:00:05]}  Kg7 {[%clk 0:00:25]} 40. Re7+ {[%clk 0:00:05]}  Kh6 {[%clk 0:00:25]} 41. Re6+ {[%clk 0:00:05]} 1/2-1/2

[Event "January 2 Late 2024"]
[Site "https://www.chess.com"]
[Date "2024.01.02"]
[Round "7"]
[White "Zomorrodian, Eilia"]
[Black "Lagarde, Maxime"]
[Result "1/2-1/2"]
[Board "46"]
[TimeControl "180+1"]
[WhiteFideId "12551805"]
[BlackFideId "662399"]
[WhiteElo "2596"]
[BlackElo "2794"]
[WhiteTeam "CAN"]
[BlackTeam "FRA"]
[WhiteClock "0:00:08"]
[BlackClock "0:00:06"]

1. e4 {[%clk 0:02:59]}  c6 {[%clk 0:03:00]} 2. d4 {[%clk 0:02:59]}  d5 {[%clk 0:03:01]} 3. exd5 {[%clk 0:03:00]}  cxd5 {[%clk 0:03:02]} 4. c4 {[%clk 0:03:01]}  Nf6 {[%clk 0:03:00]} 5. Nc3 {[%clk 0:03:02]}  e6 {[%clk 0:03:00]} 6. c5 {[%clk 0:03:02]}  b6 {[%clk 0:02:40]} 7. b4 {[%clk 0:03:02]}  a5 {[%clk 0:02:41]} 8. Na4 {[%clk 0:03:02]}  Nbd7 {[%clk 0:02:28]} 9. Bb5 {[%clk 0:02:59]}  bxc5 {[%clk 0:01:52]} 10. bxc5 {[%clk 0:02:57]}  Ba6 {[%clk 0:01:51]} 11. Bxa6 {[%clk 0:02:49]}  Rxa6 {[%clk 0:01:52]} 12. Qd3 {[%clk 0:02:49]}  Qc8 {[%clk 0:01:48]} 13. Nf3 {[%clk 0:02:47]}  Be7 {[%clk 0:01:48]} 14. O-O {[%clk 0:02:44]}  O-O {[%clk 0:01:48]} 15. h3 {[%clk 0:02:42]}  Qc6 {[%clk 0:01:44]} 16. Bf4 {[%clk 0:02:36]}  Rfa8 {[%clk 0:01:38]} 17. Nc3 {[%clk 0:02:26]}  a4 {[%clk 0:01:34]} 18. Nb5 {[%clk 0:02:20]}  Rc8 {[%clk 0:01:27]} 19. Rab1 {[%clk 0:02:20]}  Ne4 {[%clk 0:01:18]} 20. Nd2 {[%clk 0:01:48]}  h6 {[%clk 0:01:12]} 21. Rfe1 {[%clk 0:01:42]}  Ndf6 {[%clk 0:01:08]} 22. f3 {[%clk 0:01:40]}  Nxd2 {[%clk 0:01:06]} 23. Qxd2 {[%clk 0:01:41]}  Nh5 {[%clk 0:01:00]} 24. Be5 {[%clk 0:01:37]}  Bg5 {[%clk 0:00:59]} 25. f4 {[%clk 0:01:35]}  Bh4 {[%clk 0:00:57]} 26. Re3 {[%clk 0:01:23]}  Ng3 {[%clk 0:00:56]} 27. Nd6 {[%clk 0:01:22]}  Rf8 {[%clk 0:00:51]} 28. f5 {[%clk 0:01:03]}  Nxf5 {[%clk 0:00:44]} 29. Nxf5 {[%clk 0:01:03]}  exf5 {[%clk 0:00:45]} 30. Rf3 {[%clk 0:01:03]}  Bg5 {[%clk 0:00:38]} 31. Qf2 {[%clk 0:00:57]}  g6 {[%clk 0:00:37]} 32. h4 {[%clk 0:00:51]}  Be7 {[%clk 0:00:35]} 33. h5 {[%clk 0:00:50]}  Bg5 {[%clk 0:00:27]} 34. hxg6 {[%clk 0:00:44]}  fxg6 {[%clk 0:00:27]} 35. g4 {[%clk 0:00:44]}  f4 {[%clk 0:00:17]} 36. Bxf4 {[%clk 0:00:43]}  Qe6 {[%clk 0:00:12]} 37. Bxg5 {[%clk 0:00:26]}  Qxg4+ {[%clk 0:00:12]} 38. Rg3 {[%clk 0:00:27]}  Qe4 {[%clk 0:00:12]} 39. Qe1 {[%clk 0:00:22]}  hxg5 {[%clk 0:00:10]} 40. Qxe4 {[%clk 0:00:21]}  dxe4 {[%clk 0:00:10]} 41. Rxg5 {[%clk 0:00:22]}  Kh7 {[%clk 0:00:07]} 42. Re5 {[%clk 0:00:21]}  Rf4 {[%clk 0:00:05]} 43. Re1 {[%clk 0:00:19]}  e3 {[%clk 0:00:02]} 44. R1xe3 {[%clk 0:00:18]}  Rxd4 {[%clk 0:00:02]} 45. Re7+ {[%clk 0:00:12]}  Kh6 {[%clk 0:00:02]} 46. a3 {[%clk 0:00:08]}  Rg4+ {[%clk 0:00:02]} 47. Kf2 {[%clk 0:00:08]}  Rf6+ {[%clk 0:00:03]} 48. Ke2 {[%clk 0:00:09]}  Rc4 {[%clk 0:00:03]} 49. R3e5 {[%clk 0:00:08]}  Rf5 {[%clk 0:00:03]} 50. Rxf5 {[%clk 0:00:08]}  gxf5 {[%clk 0:00:04]} 51. Rc7 {[%clk 0:00:08]}  Kg5 {[%clk 0:00:04]} 52. Kd3 {[%clk 0:00:08]}  Rc1 {[%clk 0:00:05]} 53. Kd4 {[%clk 0:00:09]}  Kf4 {[%clk 0:00:04]} 54. Rf7 {[%clk 0:00:07]}  Ra1 {[%clk 0:00:02]} 55. c6 {[%clk 0:00:07]}  Rd1+ {[%clk 0:00:02]} 56. Kc5 {[%clk 0:00:07]}  Rc1+ {[%clk 0:00:03]} 57. Kb6 {[%clk 0:00:08]}  Ke4 {[%clk 0:00:03]} 58. c7 {[%clk 0:00:07]}  f4 {[%clk 0:00:04]} 59. Rf6 {[%clk 0:00:08]}  f3 {[%clk 0:00:02]} 60. Rc6 {[%clk 0:00:07]}  Rxc6+ {[%clk 0:00:01]} 61. Kxc6 {[%clk 0:00:08]}  f2 {[%clk 0:00:01]} 62. c8=Q {[%clk 0:00:09]}  f1=Q {[%clk 0:00:02]} 63. Qe6+ {[%clk 0:00:05]}  Kd4 {[%clk 0:00:02]} 64. Qd5+ {[%clk 0:00:06]}  Kc3 {[%clk 0:00:02]} 65. Qc5+ {[%clk 0:00:06]}  Qc4 {[%clk 0:00:02]} 66. Kb6 {[%clk 0:00:03]}  Qxc5+ {[%clk 0:00:02]} 67. Kxc5 {[%clk 0:00:04]}  Kb3 {[%clk 0:00:02]} 68. Kd4 {[%clk 0:00:04]}  Kxa3 {[%clk 0:00:03]} 69. Kc3 {[%clk 0:00:05]}  Ka2 {[%clk 0:00:03]} 70. Kc2 {[%clk 0:00:06]}  a3 {[%clk 0:00:04]} 71. Kc1 {[%clk 0:00:07]}  Kb3 {[%clk 0:00:05]} 72. Kb1 {[%clk 0:00:07]}  a2+ {[%clk 0:00:06]} 73. Ka1 {[%clk 0:00:08]}  Ka3 {[%clk 0:00:06]} 1/2-1/2

[Event "January 2 Late 2024"]
[Site "https://www.chess.com"]
[Date "2024.01.02"]
[Round "7"]
[White "Roberson, Peter T"]
[Black "Le, Quang Long"]
[Result "0-1"]
[Board "48"]
[TimeControl "180+1"]
[WhiteFideId "412384"]
[BlackFideId "12401749"]
[WhiteElo "2586"]
[BlackElo "2780"]
[WhiteTeam "ENG"]
[BlackTeam "CAN"]
[WhiteClock "0:00:00"]
[BlackClock "0:00:41"]

1. b3 {[%clk 0:03:00]}  Nf6 {[%clk 0:02:53]} 2. Bb2 {[%clk 0:03:01]}  e6 {[%clk 0:02:53]} 3. e3 {[%clk 0:03:01]}  c5 {[%clk 0:02:52]} 4. f4 {[%clk 0:02:59]}  b6 {[%clk 0:02:45]} 5. Nf3 {[%clk 0:02:59]}  Bb7 {[%clk 0:02:45]} 6. Bd3 {[%clk 0:02:59]}  d6 {[%clk 0:02:44]} 7. O-O {[%clk 0:03:00]}  Nc6 {[%clk 0:02:41]} 8. Nc3 {[%clk 0:03:01]}  Qd7 {[%clk 0:02:41]} 9. Qe2 {[%clk 0:02:58]}  a6 {[%clk 0:02:40]} 10. a4 {[%clk 0:02:56]}  Nb4 {[%clk 0:02:40]} 11. e4 {[%clk 0:02:55]}  Nxd3 {[%clk 0:02:39]} 12. Qxd3 {[%clk 0:02:55]}  Be7 {[%clk 0:02:39]} 13. Rae1 {[%clk 0:02:52]}  O-O {[%clk 0:02:30]} 14. f5 {[%clk 0:02:48]}  e5 {[%clk 0:02:24]} 15. Nd5 {[%clk 0:02:40]}  Bxd5 {[%clk 0:02:04]} 16. exd5 {[%clk 0:02:41]}  b5 {[%clk 0:01:58]} 17. axb5 {[%clk 0:02:31]}  Qxb5 {[%clk 0:01:59]} 18. c4 {[%clk 0:02:30]}  Qb6 {[%clk 0:01:56]} 19. Ng5 {[%clk 0:02:29]}  Rfb8 {[%clk 0:01:55]} 20. Rf3 {[%clk 0:02:28]}  a5 {[%clk 0:01:54]} 21. Bc1 {[%clk 0:01:50]}  a4 {[%clk 0:01:53]} 22. bxa4 {[%clk 0:01:51]}  Rxa4 {[%clk 0:01:53]} 23. Ne4 {[%clk 0:01:51]}  Qb1 {[%clk 0:01:50]} 24. Nxf6+ {[%clk 0:01:35]}  Bxf6 {[%clk 0:01:50]} 25. Qxb1 {[%clk 0:01:36]}  Rxb1 {[%clk 0:01:50]} 26. d3 {[%clk 0:01:37]}  Raa1 {[%clk 0:01:41]} 27. Rff1 {[%clk 0:01:36]}  Rb3 {[%clk 0:01:38]} 28. Rd1 {[%clk 0:01:33]}  h5 {[%clk 0:01:35]} 29. Be3 {[%clk 0:01:28]}  Ra2 {[%clk 0:01:35]} 30. Rf2 {[%clk 0:01:24]}  Raa3 {[%clk 0:01:36]} 31. Rfd2 {[%clk 0:01:24]}  e4 {[%clk 0:01:36]} 32. Bf4 {[%clk 0:01:09]}  Bd4+ {[%clk 0:01:27]} 33. Kf1 {[%clk 0:01:07]}  exd3 {[%clk 0:01:05]} 34. Bxd6 {[%clk 0:01:03]}  Be3 {[%clk 0:01:06]} 35. Be7 {[%clk 0:00:49]}  f6 {[%clk 0:00:58]} 36. d6 {[%clk 0:00:47]}  Kf7 {[%clk 0:00:58]} 37. g3 {[%clk 0:00:44]}  Bxd2 {[%clk 0:00:54]} 38. Rxd2 {[%clk 0:00:45]}  Rc3 {[%clk 0:00:52]} 39. Kf2 {[%clk 0:00:17]}  Rc2 {[%clk 0:00:52]} 40. Ke3 {[%clk 0:00:17]}  Rxd2 {[%clk 0:00:52]} 41. Kxd2 {[%clk 0:00:18]}  Ke8 {[%clk 0:00:48]} 42. Ke3 {[%clk 0:00:15]}  Rc3 {[%clk 0:00:41]} 43. h3 {[%clk 0:00:13]}  d2+ {[%clk 0:00:40]} 44. Kxd2 {[%clk 0:00:00]}  Rxg3 {[%clk 0:00:41]} 0-1